fUSD/lending_fUSD_20240404
["ID","MTS","AMOUNT","RATE_DAILY","PERIOD"]
[321441063,1712190711184,-1941.18,0.00055342,120]
[321441064,1712190711193,-1646.81,0.00055342,120]
[321441065,1712190711203,-779.43,0.00055342,120]
[321441066,1712190711213,-500.0,0.00055342,120]
[321441067,1712190711223,-2787.23,0.00055342,120]
[321441068,1712190711233,-500.0,0.00055342,120]
[321441069,1712190711242,-675.44,0.00055342,120]
[321441070,1712190711253,-990.77,0.00055342,120]
[321441071,1712190711262,-1635.36,0.00055342,120]
[321441072,1712190711271,-500.0,0.00055342,120]
[321441073,1712190711281,-1067.21,0.00055342,120]
[321441074,1712190711291,-22267.69,0.00055342,120]
[321441075,1712190711300,-2122.98,0.00055342,21]
[321441076,1712190711310,-500.0,0.00055342,120]
[321441077,1712190711320,-511.24,0.00055342,120]
[321441078,1712190711330,-1284.38,0.00055342,120]
[321441079,1712190711339,-2195.47,0.00055342,120]
[321441080,1712190711348,-2715.8,0.00055342,120]
[321441081,1712190711358,-500.0,0.00055342,120]
[321441082,1712190711368,-1327.49,0.00055342,120]
[321441083,1712190711377,-500.0,0.00055342,120]
[321441084,1712190711388,-868.5,0.00055342,120]
[321441085,1712190711398,-1765.59,0.00055342,120]
[321441086,1712190711407,-2844.38,0.00055342,120]
[321441087,1712190711416,-500.0,0.00055342,2]
[321441088,1712190711426,-1632.35,0.00055342,120]
[321441089,1712190711435,-500.0,0.00055342,120]
[321441090,1712190711446,-1776.74,0.00055342,120]
[321441091,1712190711455,-1803.32,0.00055342,120]
[321441092,1712190711465,-500.0,0.00055342,120]
[321441093,1712190711474,-500.0,0.00055342,120]
[321441094,1712190711696,-1892.19,0.00055342,120]
[321441095,1712190711707,-3126.11,0.00055342,120]
[321441096,1712190711717,-5000.0,0.00055342,120]
[321441097,1712190711727,-2784.63,0.00055342,120]
[321441098,1712190711737,-3323.22,0.00055342,120]
[321441099,1712190711747,-1895.53327011,0.00055342,120]
[321441100,1712190711756,-3312.34,0.00055342,120]
[321441101,1712190711765,-5309.75,0.00055342,120]
[321441102,1712190711775,-836.08,0.00055342,120]
[321441103,1712190711784,-4538.71,0.00055342,120]
[321441104,1712190711794,-1890.49,0.00055342,120]
[321441105,1712190711804,-500.0,0.00055342,120]
[321441106,1712190711814,-2056.95,0.00055342,120]
[321441107,1712190711825,-1278.63,0.00055342,120]
[321441108,1712190711835,-873.47,0.00055342,120]
[321441109,1712190711845,-505.87291856,0.00055342,120]
[321441110,1712190711855,-5629.68,0.00055342,120]
[321441111,1712190711865,-3860.65,0.00055342,120]
[321441112,1712190711875,-2020.42,0.00055342,120]
[321441113,1712190711887,-500.0,0.00055342,120]
[321441114,1712190711898,-500.0,0.00055342,2]
[321441115,1712190711908,-1629.02,0.00055342,120]
[321441116,1712190711919,-7000.0,0.00055342,120]
[321441117,1712190711929,-500.0,0.00055342,120]
[321441118,1712190711940,-2185.74,0.00055342,120]
[321441119,1712190711950,-591.17,0.00055342,120]
[321441120,1712190711960,-2282.83,0.00055342,120]
[321441121,1712190711970,-500.0,0.00055342,120]
[321441122,1712190711980,-749.89,0.00055342,120]
[321441123,1712190711990,-1283.01,0.00055342,120]
[321441124,1712190711999,-516.54580543,0.00055342,120]
[321441125,1712190712010,-500.0,0.00055342,120]
[321441126,1712190712020,-1047.49,0.00055342,120]
[321441127,1712190712029,-500.0,0.00055342,120]
[321441128,1712190712040,-421.08106086,0.00055342,120]
[321441129,1712190712049,-150.0,0.00055342,120]
[321441130,1712190712060,-191.47483542,0.00055342,120]
[321441131,1712190712070,-150.0,0.00055342,120]
[321441132,1712190712081,-150.0,0.00055342,120]
[321441133,1712190712094,-150.0,0.00055342,120]
[321441134,1712190712104,-421.08106086,0.0005535,120]
[321441135,1712190712114,-191.47483542,0.0005535,120]
[321441136,1712190712125,-150.0,0.00055354,120]
[321441137,1712190712135,-421.08106086,0.00055359,120]
[321441138,1712190712147,-191.47483542,0.00055359,120]
[321441139,1712190712157,-150.0,0.00055365,120]
[321441140,1712190712169,-421.08106086,0.00055367,120]
[321441141,1712190712178,-191.47483542,0.00055367,120]
[321441142,1712190712188,-150.0,0.0005537,120]
[321441143,1712190712198,-421.08106086,0.00055375,120]
[321441144,1712190712208,-191.47483542,0.00055375,120]
[321441145,1712190712218,-150.0,0.00055376,120]
[321441146,1712190712228,-200.0,0.00055377,120]
[321441147,1712190712238,-200.0,0.00055377,120]
[321441148,1712190712247,-421.08106086,0.00055384,120]
[321441149,1712190712257,-191.47483542,0.00055384,120]
[321441150,1712190712267,-150.0,0.00055388,120]
[321441151,1712190712276,-421.08106086,0.00055392,120]
[321441152,1712190712285,-191.47483542,0.00055392,120]
[321441153,1712190712295,-150.0,0.00055397,120]
[321441154,1712190712305,-150.0,0.00055399,120]
[321441155,1712190712314,-421.08106086,0.000554,120]
[321441156,1712190712323,-191.47483542,0.000554,120]
[321441157,1712190712334,-421.08106086,0.00055409,120]
[321441158,1712190712343,-191.47483542,0.00055409,120]
[321441159,1712190712352,-150.0,0.00055411,120]
[321441160,1712190712362,-421.08106086,0.00055417,120]
[321441161,1712190712371,-191.47483542,0.00055417,120]
[321441162,1712190712381,-150.0,0.00055422,120]
[321441163,1712190712392,-150.0,0.00055424,120]
[321441164,1712190712401,-421.08106086,0.00055425,120]
[321441165,1712190712411,-191.47483542,0.00055425,120]
[321441166,1712190712421,-421.08106086,0.00055433,120]
[321441167,1712190712430,-150.0,0.00055433,120]
[321441168,1712190712440,-191.47483542,0.00055433,120]
[321441169,1712190712449,-421.08106086,0.00055442,120]
[321441170,1712190712459,-191.47483542,0.00055442,120]
[321441171,1712190712469,-150.0,0.00055445,120]
[321441172,1712190712478,-421.08106086,0.0005545,120]
[321441173,1712190712488,-191.47483542,0.0005545,120]
[321441174,1712190712498,-150.0,0.00055452,120]
[321441175,1712190712508,-150.0,0.00055452,120]
[321441176,1712190712518,-150.0,0.00055456,120]
[321441177,1712190712527,-421.08106086,0.00055458,120]
[321441178,1712190712537,-191.47483542,0.00055458,120]
[321441179,1712190712546,-421.08106086,0.00055467,120]
[321441180,1712190712556,-191.47483542,0.00055467,120]
[321441181,1712190712565,-150.0,0.00055468,120]
[321441182,1712190712576,-421.08106086,0.00055475,120]
[321441183,1712190712585,-191.47483542,0.00055475,120]
[321441184,1712190712595,-500.0,0.00055479,120]
[321441185,1712190712604,-150.0,0.00055479,120]
[321441186,1712190712614,-150.0,0.00055479,120]
[321441187,1712190712624,-421.08106086,0.00055483,120]
[321441188,1712190712634,-191.47483542,0.00055483,120]
[321441189,1712190712645,-150.0,0.0005549,120]
[321441190,1712190712655,-421.08106086,0.00055492,120]
[321441191,1712190712665,-191.47483542,0.00055492,120]
[321441192,1712190712675,-2713.0,0.00055498,66]
[321441193,1712190712685,-421.08106086,0.000555,120]
[321441194,1712190712695,-191.47483542,0.000555,120]
[321441195,1712190712706,-1072.0,0.000555,105]
[321441196,1712190712716,-150.0,0.00055502,120]
[321441197,1712190712727,-150.0,0.00055506,120]
[321441198,1712190712737,-421.08106086,0.00055508,120]
[321441199,1712190712747,-191.47483542,0.00055508,120]
[321441200,1712190712757,-150.0,0.00055513,120]
[321441201,1712190712766,-421.08106086,0.00055516,120]
[321441202,1712190712776,-191.47483542,0.00055516,120]
[321441203,1712190712786,-421.08106086,0.00055525,120]
[321441204,1712190712795,-150.0,0.00055525,120]
[321441205,1712190712805,-191.47483542,0.00055525,120]
[321441206,1712190712814,-421.08106086,0.00055533,120]
[321441207,1712190712824,-191.47483542,0.00055533,120]
[321441208,1712190712834,-150.0,0.00055534,120]
[321441209,1712190712843,-151.0,0.00055534,120]
[321441210,1712190712853,-150.0,0.00055536,120]
[321441211,1712190712862,-421.08106086,0.00055541,120]
[321441212,1712190712872,-191.47483542,0.00055541,120]
[321441213,1712190712881,-150.0,0.00055548,120]
[321441214,1712190712892,-421.08106086,0.0005555,120]
[321441215,1712190712902,-191.47483542,0.0005555,120]
[321441216,1712190712911,-421.08106086,0.00055558,120]
[321441217,1712190712922,-191.47483542,0.00055558,120]
[321441218,1712190712931,-150.0,0.00055559,120]
[321441219,1712190712941,-150.0,0.00055561,120]
[321441220,1712190712951,-421.08106086,0.00055566,120]
[321441221,1712190712961,-191.47483542,0.00055566,120]
[321441222,1712190712971,-1000.0,0.0005557,30]
[321441223,1712190712980,-400.0,0.0005557,30]
[321441224,1712190712990,-150.0,0.0005557,120]
[321441225,1712190713000,-421.08106086,0.00055575,120]
[321441226,1712190713010,-191.47483542,0.00055575,120]
[321441227,1712190713020,-1944.2569669,0.00055578,2]
[321441228,1712190713029,-219.1750199,0.00055578,2]
[321441229,1712190713039,-14743.350328,0.00055578,2]
[321441230,1712190713048,-5203.5848832,0.00055578,2]
[321441231,1712190713058,-150.0,0.00055582,120]
[321441232,1712190713067,-421.08106086,0.00055583,120]
[321441233,1712190713079,-191.47483542,0.00055583,120]
[321441234,1712190713089,-150.0,0.00055589,120]
[321441235,1712190713099,-1131.11,0.00055589,120]
[321441236,1712190713108,-421.08106086,0.00055591,120]
[321441237,1712190713123,-191.47483542,0.00055591,120]
[321441238,1712190713133,-150.0,0.00055593,120]
[321441239,1712190713144,-421.08106086,0.00055599,120]
[321441240,1712190713156,-191.47483542,0.00055599,120]
[321441241,1712190713175,-150.0,0.000556,120]
[321441242,1712190713189,-403.0,0.000556,34]
[321441243,1712190713198,-480.0,0.000556,45]
[321441244,1712190713207,-403.0,0.000556,34]
[321441245,1712190713216,-187.0,0.000556,45]
[321441246,1712190713225,-150.0,0.000556,34]
[321441247,1712190713234,-806.0,0.000556,34]
[321441248,1712190713243,-961.0,0.000556,45]
[321441249,1712190713253,-806.0,0.000556,34]
[321441250,1712190713263,-1464.642504,0.000556,99]
[321441251,1712190713272,-200.0,0.000556,34]
[321441252,1712190713281,-150.0,0.000556,12]
[321441253,1712190713291,-150.0,0.00055605,120]
[321441254,1712190713301,-421.08106086,0.00055608,120]
[321441255,1712190713313,-191.47483542,0.00055608,120]
[321441256,1712190713324,-219.0,0.0005561,30]
[321441257,1712190713334,-207.0,0.0005561,30]
[321441258,1712190713343,-216.0,0.0005561,30]
[321441259,1712190713354,-207.0,0.0005561,30]
[321441260,1712190713364,-211.0,0.0005561,30]
[321441261,1712190713373,-219.0,0.0005561,30]
[321441262,1712190713382,-207.0,0.0005561,30]
[321441263,1712190713393,-211.0,0.0005561,30]
[321441264,1712190713403,-211.0,0.0005561,30]
[321441265,1712190713412,-200.0,0.00055615,120]
[321441266,1712190713422,-800.0,0.00055615,120]
[321441267,1712190713432,-500.0,0.00055615,120]
[321441268,1712190713441,-1029.0,0.00055616,120]
[321441269,1712190713451,-1029.0,0.00055616,120]
[321441270,1712190713461,-500.0,0.00055616,30]
[321441271,1712190713470,-1029.0,0.00055616,120]
[321441272,1712190713480,-337.73168936,0.00055616,120]
[321441273,1712190713490,-500.0,0.00055616,120]
[321441274,1712190713499,-500.0,0.00055616,120]
[321441275,1712190713509,-157.99,0.00055616,30]
[321441276,1712190713518,-500.0,0.00055616,120]
[321441277,1712190713527,-1027.84,0.00055616,120]
[321441278,1712190713537,-539.18,0.00055616,120]
[321441279,1712190713546,-500.0,0.00055616,120]
[321441280,1712190713555,-705.27,0.00055616,120]
[321441281,1712190713564,-513.28,0.00055616,120]
[321441282,1712190713573,-500.0,0.00055616,120]
[321441283,1712190713583,-1029.0,0.00055616,120]
[321441284,1712190713592,-500.0,0.00055616,120]
[321441285,1712190713601,-500.0,0.00055616,120]
[321441286,1712190713610,-500.0,0.00055616,120]
[321441287,1712190713619,-500.0,0.00055616,120]
[321441288,1712190713628,-500.0,0.00055616,120]
[321441289,1712190713639,-659.49,0.00055616,120]
[321441290,1712190713648,-704.66,0.00055616,120]
[321441291,1712190713657,-520.88116642,0.00055616,120]
[321441292,1712190713667,-500.0,0.00055616,120]
[321441293,1712190713676,-245.75285777,0.00055616,120]
[321441294,1712190713685,-675.72,0.00055616,120]
[321441295,1712190713694,-500.0,0.00055616,120]
[321441296,1712190713703,-500.0,0.00055616,120]
[321441297,1712190713713,-1000.0,0.00055616,30]
[321441298,1712190713723,-500.0,0.00055616,120]
[321441299,1712190713732,-500.0,0.00055616,120]
[321441300,1712190713741,-500.0,0.00055616,120]
[321441301,1712190713751,-590.49,0.00055616,120]
[321441302,1712190713760,-686.97,0.00055616,120]
[321441303,1712190713769,-324.01607316,0.00055616,120]
[321441304,1712190713778,-500.0,0.00055616,120]
[321441305,1712190713787,-500.0,0.00055616,120]
[321441306,1712190713796,-500.0,0.00055616,120]
[321441307,1712190713806,-500.0,0.00055616,120]
[321441308,1712190713816,-2000.0,0.00055616,30]
[321441309,1712190713827,-500.0,0.00055616,120]
[321441310,1712190713836,-500.0,0.00055616,120]
[321441311,1712190713847,-500.0,0.00055616,120]
[321441312,1712190713857,-500.0,0.00055616,120]
[321441313,1712190713866,-500.0,0.00055616,120]
[321441314,1712190713876,-503.29863314,0.00055616,2]
[321441315,1712190713885,-515.95795384,0.00055616,120]
[321441316,1712190713896,-500.0,0.00055616,120]
[321441317,1712190713905,-642.8,0.00055616,120]
[321441318,1712190713915,-500.0,0.00055616,120]
[321441319,1712190713927,-634.62,0.00055616,120]
[321441320,1712190713938,-500.0,0.00055616,120]
[321441321,1712190713948,-500.0,0.00055616,120]
[321441322,1712190713958,-500.0,0.00055616,120]
[321441323,1712190713967,-733.94,0.00055616,120]
[321441324,1712190713976,-500.0,0.00055616,120]
[321441325,1712190713986,-838.66,0.00055616,120]
[321441326,1712190713995,-558.23,0.00055616,120]
[321441327,1712190714004,-500.0,0.00055616,120]
[321441328,1712190714014,-185.20559156,0.00055616,120]
[321441329,1712190714023,-500.0,0.00055616,120]
[321441330,1712190714032,-500.0,0.00055616,120]
[321441331,1712190714041,-500.0,0.00055616,120]
[321441332,1712190714050,-500.0,0.00055616,120]
[321441333,1712190714059,-500.0,0.00055616,120]
[321441334,1712190714068,-580.93,0.00055616,120]
[321441335,1712190714078,-2171.28,0.00055616,120]
[321441336,1712190714088,-500.0,0.00055616,120]
[321441337,1712190714097,-500.0,0.00055616,120]
[321441338,1712190714195,-500.0,0.00055616,120]
[321441339,1712190714205,-500.0,0.00055616,120]
[321441340,1712190714214,-500.0,0.00055616,120]
[321441341,1712190714223,-500.0,0.00055616,120]
[321441342,1712190714233,-500.0,0.00055616,120]
[321441343,1712190714242,-511.4,0.00055616,120]
[321441344,1712190714251,-167.40329741,0.00055616,120]
[321441345,1712190714261,-548.65550942,0.00055616,120]
[321441346,1712190714271,-461.06628099,0.00055616,120]
[321441347,1712190714281,-500.0,0.00055616,120]
[321441348,1712190714290,-500.0,0.00055616,120]
[321441349,1712190714299,-647.29,0.00055616,120]
[321441350,1712190714309,-500.0,0.00055616,120]
[321441351,1712190714318,-624.35,0.00055616,120]
[321441352,1712190714328,-500.0,0.00055616,120]
[321441353,1712190714337,-510.27,0.00055616,120]
[321441354,1712190714347,-500.0,0.00055616,120]
[321441355,1712190714357,-500.0,0.00055616,120]
[321441356,1712190714366,-500.0,0.00055616,120]
[321441357,1712190714376,-500.0,0.00055616,120]
[321441358,1712190714385,-593.44,0.00055616,120]
[321441359,1712190714395,-500.0,0.00055616,120]
[321441360,1712190714404,-500.0,0.00055616,120]
[321441361,1712190714414,-561.42,0.00055616,120]
[321441362,1712190714424,-500.0,0.00055616,120]
[321441363,1712190714433,-500.0,0.00055616,120]
[321441364,1712190714442,-2110.0,0.00055616,15]
[321441365,1712190714451,-500.0,0.00055616,120]
[321441366,1712190714460,-426.67807496,0.00055616,120]
[321441367,1712190714469,-564.29,0.00055616,120]
[321441368,1712190714478,-500.0,0.00055616,120]
[321441369,1712190714488,-510.01,0.00055616,120]
[321441370,1712190714497,-500.0,0.00055616,120]
[321441371,1712190714506,-515.90190741,0.00055616,120]
[321441372,1712190714515,-500.0,0.00055616,120]
[321441373,1712190714524,-500.0,0.00055616,120]
[321441374,1712190714535,-500.0,0.00055616,120]
[321441375,1712190714545,-535.89,0.00055616,120]
[321441376,1712190714555,-651.69,0.00055616,120]
[321441377,1712190714565,-500.0,0.00055616,120]
[321441378,1712190714574,-500.0,0.00055616,120]
[321441379,1712190714582,-551.92625124,0.00055616,120]
[321441380,1712190714591,-529.0570593,0.00055616,120]
[321441381,1712190714600,-500.0,0.00055616,120]
[321441382,1712190714610,-500.0,0.00055616,120]
[321441383,1712190714619,-626.94,0.00055616,120]
[321441384,1712190714628,-500.0,0.00055616,120]
[321441385,1712190714638,-531.01,0.00055616,120]
[321441386,1712190714647,-500.0,0.00055616,120]
[321441387,1712190714656,-500.0,0.00055616,120]
[321441388,1712190714665,-500.0,0.00055616,120]
[321441389,1712190714675,-500.0,0.00055616,120]
[321441390,1712190714684,-150.0,0.00055616,120]
[321441391,1712190714693,-500.0,0.00055616,120]
[321441392,1712190714702,-509.1,0.00055616,120]
[321441393,1712190714710,-724.1,0.00055616,120]
[321441394,1712190714719,-376.68440724,0.00055616,120]
[321441395,1712190714728,-536.99,0.00055616,120]
[321441396,1712190714737,-500.0,0.00055616,120]
[321441397,1712190714746,-497.45703047,0.00055616,120]
[321441398,1712190714755,-500.0,0.00055616,120]
[321441399,1712190714764,-500.0,0.00055616,120]
[321441400,1712190714773,-500.0,0.00055616,120]
[321441401,1712190714782,-500.0,0.00055616,120]
[321441402,1712190714792,-553.32591789,0.00055616,120]
[321441403,1712190714801,-500.0,0.00055616,120]
[321441404,1712190714810,-282.1720647,0.00055616,120]
[321441405,1712190714820,-500.0,0.00055616,120]
[321441406,1712190714829,-635.83,0.00055616,120]
[321441407,1712190714838,-500.0,0.00055616,120]
[321441408,1712190714847,-701.21,0.00055616,120]
[321441409,1712190714856,-530.77066748,0.00055616,120]
[321441410,1712190714865,-449.36544232,0.00055616,120]
[321441411,1712190714874,-500.0,0.00055616,120]
[321441412,1712190714884,-216.86597884,0.00055616,120]
[321441413,1712190714895,-499.07043774,0.00055616,120]
[321441414,1712190714904,-928.84,0.00055616,120]
[321441415,1712190714913,-500.0,0.00055616,120]
[321441416,1712190714922,-500.0,0.00055616,120]
[321441417,1712190714933,-500.0,0.00055616,120]
[321441418,1712190714942,-500.0,0.00055616,120]
[321441419,1712190714952,-500.0,0.00055616,120]
[321441420,1712190714961,-500.0,0.00055616,120]
[321441421,1712190714970,-500.0,0.00055616,120]
[321441422,1712190714980,-500.0,0.00055616,120]
[321441423,1712190714990,-500.0,0.00055616,120]
[321441424,1712190714999,-1101.57,0.00055616,120]
[321441425,1712190715008,-500.0,0.00055616,120]
[321441426,1712190715018,-1277.23,0.00055616,120]
[321441427,1712190715028,-500.0,0.00055616,120]
[321441428,1712190715038,-559.74,0.00055616,120]
[321441429,1712190715049,-500.0,0.00055616,120]
[321441430,1712190715062,-500.0,0.00055616,120]
[321441431,1712190715072,-1000.0,0.00055616,120]
[321441432,1712190715082,-500.0,0.00055616,120]
[321441433,1712190715095,-1119.45,0.00055616,120]
[321441434,1712190715104,-500.0,0.00055616,120]
[321441435,1712190715113,-500.0,0.00055616,120]
[321441436,1712190715123,-1429.76,0.00055616,120]
[321441437,1712190715133,-791.83,0.00055616,120]
[321441438,1712190715143,-500.0,0.00055616,120]
[321441439,1712190715153,-500.0,0.00055616,120]
[321441440,1712190715163,-688.85,0.00055616,120]
[321441441,1712190715172,-666.67,0.00055616,120]
[321441442,1712190715182,-500.0,0.00055616,120]
[321441443,1712190715191,-618.43,0.00055616,120]
[321441444,1712190715200,-500.0,0.00055616,120]
[321441445,1712190715209,-514.2,0.00055616,120]
[321441446,1712190715219,-500.0,0.00055616,120]
[321441447,1712190715228,-1099.54,0.00055616,120]
[321441448,1712190715238,-500.0,0.00055616,120]
[321441449,1712190715247,-643.07612463,0.00055616,120]
[321441450,1712190715256,-500.0,0.00055616,120]
[321441451,1712190715266,-500.0,0.00055616,120]
[321441452,1712190715275,-512.16,0.00055616,120]
[321441453,1712190715285,-734.12,0.00055616,120]
[321441454,1712190715294,-500.0,0.00055616,120]
[321441455,1712190715303,-952.04,0.00055616,120]
[321441456,1712190715314,-1210.63,0.00055616,120]
[321441457,1712190715323,-500.0,0.00055616,120]
[321441458,1712190715333,-585.98919322,0.00055616,120]
[321441459,1712190715343,-1171.81,0.00055616,120]
[321441460,1712190715353,-500.0,0.00055616,120]
[321441461,1712190715363,-1211.72,0.00055616,120]
[321441462,1712190715372,-501.6,0.00055616,120]
[321441463,1712190715381,-500.0,0.00055616,120]
[321441464,1712190715392,-500.0,0.00055616,120]
[321441465,1712190715401,-500.0,0.00055616,120]
[321441466,1712190715410,-631.33,0.00055616,120]
[321441467,1712190715419,-543.81,0.00055616,120]
[321441468,1712190715428,-500.0,0.00055616,120]
[321441469,1712190715437,-533.2,0.00055616,120]
[321441470,1712190715446,-500.0,0.00055616,120]
[321441471,1712190715455,-1209.28,0.00055616,120]
[321441472,1712190715464,-500.0,0.00055616,120]
[321441473,1712190715474,-1576.5,0.00055616,120]
[321441474,1712190715483,-552.83745961,0.00055616,120]
[321441475,1712190715493,-548.13662645,0.00055616,120]
[321441476,1712190715502,-579.99,0.00055616,120]
[321441477,1712190715512,-500.0,0.00055616,120]
[321441478,1712190715521,-500.0,0.00055616,120]
[321441479,1712190715531,-875.72,0.00055616,2]
[321441480,1712190715540,-960.97,0.00055616,120]
[321441481,1712190715549,-890.32,0.00055616,120]
[321441482,1712190715559,-935.91,0.00055616,120]
[321441483,1712190715568,-500.0,0.00055616,120]
[321441484,1712190715577,-500.0,0.00055616,120]
[321441485,1712190715587,-550.32,0.00055616,120]
[321441486,1712190715596,-1009.55,0.00055616,120]
[321441487,1712190715605,-906.84,0.00055616,120]
[321441488,1712190715614,-500.0,0.00055616,2]
[321441489,1712190715625,-500.0,0.00055616,120]
[321441490,1712190715635,-1038.27,0.00055616,120]
[321441491,1712190715646,-500.0,0.00055616,120]
[321441492,1712190715656,-1184.33,0.00055616,120]
[321441493,1712190715665,-2498.55,0.00055616,120]
[321441494,1712190715675,-519.27721757,0.00055616,120]
[321441495,1712190715684,-500.0,0.00055616,120]
[321441496,1712190715694,-500.0,0.00055616,120]
[321441497,1712190715703,-1115.69,0.00055616,120]
[321441498,1712190715712,-982.66,0.00055616,120]
[321441499,1712190715722,-977.94,0.00055616,120]
[321441500,1712190715731,-500.0,0.00055616,120]
[321441501,1712190715740,-500.0,0.00055616,120]
[321441502,1712190715751,-500.0,0.00055616,120]
[321441503,1712190715761,-1277.94,0.00055616,120]
[321441504,1712190715770,-693.26,0.00055616,120]
[321441505,1712190715780,-500.0,0.00055616,120]
[321441506,1712190715789,-500.0,0.00055616,120]
[321441507,1712190715798,-959.52,0.00055616,120]
[321441508,1712190715808,-500.0,0.00055616,120]
[321441509,1712190715817,-500.0,0.00055616,120]
[321441510,1712190715826,-965.12,0.00055616,120]
[321441511,1712190715835,-1115.54,0.00055616,120]
[321441512,1712190715846,-500.0,0.00055616,120]
[321441513,1712190715857,-520.19165921,0.00055616,120]
[321441514,1712190715866,-500.0,0.00055616,30]
[321441515,1712190715874,-500.0,0.00055616,120]
[321441516,1712190715886,-500.0,0.00055616,120]
[321441517,1712190715895,-500.0,0.00055616,120]
[321441518,1712190715904,-500.0,0.00055616,120]
[321441519,1712190715914,-500.0,0.00055616,120]
[321441520,1712190715923,-2796.11,0.00055616,120]
[321441521,1712190715933,-500.0,0.00055616,120]
[321441522,1712190715942,-703.57,0.00055616,120]
[321441523,1712190715951,-500.0,0.00055616,120]
[321441524,1712190715960,-1215.43,0.00055616,120]
[321441525,1712190715969,-442.51604801,0.00055616,120]
[321441526,1712190715978,-500.0,0.00055616,120]
[321441527,1712190715987,-500.0,0.00055616,120]
[321441528,1712190715996,-1411.34,0.00055616,120]
[321441529,1712190716005,-173.75277651,0.00055616,120]
[321441530,1712190716014,-865.98,0.00055616,120]
[321441531,1712190716023,-1132.35,0.00055616,120]
[321441532,1712190716033,-500.0,0.00055616,120]
[321441533,1712190716042,-593.63,0.00055616,120]
[321441534,1712190716051,-500.0,0.00055616,120]
[321441535,1712190716060,-500.0,0.00055616,120]
[321441536,1712190716070,-500.0,0.00055616,120]
[321441537,1712190716079,-1282.32,0.00055616,120]
[321441538,1712190716092,-500.0,0.00055616,120]
[321441539,1712190716100,-500.0,0.00055616,120]
[321441540,1712190716109,-500.0,0.00055616,120]
[321441541,1712190716118,-1154.7,0.00055616,120]
[321441542,1712190716128,-1054.98,0.00055616,120]
[321441543,1712190716139,-636.66,0.00055616,120]
[321441544,1712190716148,-1332.56,0.00055616,120]
[321441545,1712190716158,-910.81,0.00055616,80]
[321441546,1712190716169,-500.0,0.00055616,120]
[321441547,1712190716179,-1091.91,0.00055616,120]
[321441548,1712190716189,-500.0,0.00055616,120]
[321441549,1712190716198,-1121.37,0.00055616,120]
[321441550,1712190716208,-500.0,0.00055616,120]
[321441551,1712190716218,-1283.08,0.00055616,120]
[321441552,1712190716228,-500.0,0.00055616,120]
[321441553,1712190716238,-500.0,0.00055616,120]
[321441554,1712190716248,-699.93,0.00055616,120]
[321441555,1712190716258,-1032.42,0.00055616,120]
[321441556,1712190716268,-500.0,0.00055616,120]
[321441557,1712190716277,-570.19656101,0.00055616,120]
[321441558,1712190716286,-1816.42,0.00055616,120]
[321441559,1712190716296,-518.20960437,0.00055616,120]
[321441560,1712190716306,-1753.93,0.00055616,120]
[321441561,1712190716315,-509.72880687,0.00055616,120]
[321441562,1712190716324,-500.0,0.00055616,120]